bitfinex/quotes_ETHUSD_20250518
["timestamp","ask_amount","ask_price","bid_price","bid_amount"]
[1747559650947,3.96427942,2522.6,2522.3,0.8062]
[1747559651129,3.96433719,2522.5,2522.3,0.8062]
[1747559651330,3.96433719,2522.5,2522.4,0.37938513]
[1747559651530,5.89878733,2522.5,2522.4,0.37938513]
[1747559652646,3.96433719,2522.5,2522.4,0.37938513]
[1747559652854,3.96433719,2522.5,2522.1,0.37938513]
[1747559653155,18.823,2522.7,2522.2,0.8322]
[1747559653453,22.78703461,2522.7,2522.4,0.8322]
[1747559653637,11.37103461,2522.7,2522.4,0.8322]
[1747559654028,11.37103461,2522.7,2522.5,0.37938513]
[1747559655257,7.407,2522.7,2522.5,0.37938513]
[1747559656251,3.96374853,2522.9,2522.6,0.37938513]
[1747559656457,11.36874853,2522.9,2522.6,0.37938513]
[1747559656644,3.9638882,2522.8,2522.6,0.37938513]
[1747559658069,3.96400681,2522.7,2522.6,0.37938513]
[1747559658939,11.36874785,2522.9,2522.6,0.37938513]
[1747559658940,11.36875958,2522.9,2522.6,1.18248513]
[1747559659140,3.96393709,2522.8,2522.6,1.18248513]
[1747559659650,11.36870183,2522.9,2522.6,0.8031]
[1747559659651,3.96381765,2522.9,2522.6,0.8031]
[1747559661971,3.96360706,2523.0,2522.6,0.8031]
[1747559662850,3.96371727,2522.9,2522.6,0.8031]
[1747559663392,3.9635957,2523.0,2522.6,0.8031]
[1747559663593,3.9635957,2523.0,2522.7,0.37874774]
[1747559663789,0.7737,2523.4,2522.7,0.37874774]
[1747559664091,3.96339672,2523.1,2522.8,0.8031]
[1747559664689,18.77311163,2523.3,2522.8,0.8031]
[1747559664989,18.77311163,2523.3,2522.7,0.37874774]
[1747559664990,3.96369257,2522.9,2522.7,0.37874774]
[1747559665169,3.96384969,2522.8,2522.7,0.37874774]
[1747559665570,3.96384969,2522.8,2522.6,1.27699864]
[1747559665881,3.96377068,2522.9,2522.6,1.27699864]
[1747559667088,3.96377068,2522.9,2522.7,0.379763]
[1747559668596,3.96377068,2522.9,2522.8,0.379763]
[1747559683255,3.96354769,2523.0,2522.8,0.379763]
[1747559683616,3.96353547,2523.0,2522.8,0.379763]
[1747559685014,3.96353547,2523.0,2522.7,0.47389864]
[1747559685015,3.96353547,2523.0,2522.9,0.379763]
[1747559688060,3.96343083,2523.1,2522.9,1.180163]
[1747559688256,3.96330905,2523.2,2522.9,1.180163]
[1747559689431,3.96330905,2523.2,2523.0,0.379763]
[1747559691321,3.96308312,2523.3,2523.1,0.379763]
[1747559691322,3.96309933,2523.3,2523.1,0.379763]
[1747559691945,3.9632213,2523.2,2523.1,0.379763]
[1747559692155,3.9631438,2523.3,2523.1,0.379763]
[1747559692977,3.9632213,2523.2,2523.1,0.379763]
[1747559700648,6.16124909,2523.2,2523.1,0.379763]
[1747559700846,6.92264909,2523.2,2523.1,0.379763]
[1747559701046,7.14472036,2523.2,2523.1,0.379763]
[1747559701977,3.96337838,2523.1,2523.0,0.379763]
[1747559702784,4.18544965,2523.1,2523.0,0.379763]
[1747559702992,11.58644965,2523.1,2523.0,0.379763]
[1747559704458,11.36437838,2523.1,2523.0,0.379763]
[1747559704699,18.76637838,2523.1,2523.0,0.379763]
[1747559705383,21.12082218,2523.1,2523.0,0.379763]
[1747559705685,21.91522218,2523.1,2523.0,0.379763]
[1747559706085,22.13709238,2523.1,2523.0,0.379763]
[1747559707300,3.96416395,2522.6,2522.5,0.47389864]
[1747559707912,20.15135343,2522.6,2522.5,0.47389864]
[1747559708075,23.43760945,2522.6,2522.5,0.47389864]
[1747559709209,23.65923837,2522.6,2522.5,0.47389864]
[1747559710818,3.96494984,2522.1,2522.0,0.37953451]
[1747559711609,11.36794984,2522.1,2522.0,0.37953451]
[1747559711909,12.98074682,2522.1,2522.0,0.37953451]
[1747559712097,21.17794682,2522.1,2522.0,0.37953451]
[1747559713420,19.56614984,2522.1,2522.0,0.37953451]
[1747559713578,18.77094984,2522.1,2522.0,0.37953451]
[1747559714319,3.96494984,2522.1,2522.0,0.37953451]
[1747559715515,4.74304984,2522.1,2522.0,0.37953451]
[1747559716077,12.74304984,2522.1,2522.0,0.37953451]
[1747559716279,16.1910787,2522.1,2522.0,0.37953451]
[1747559716607,16.7410787,2522.1,2522.0,0.37953451]
[1747559717112,16.96193182,2522.1,2522.0,0.37953451]
[1747559719912,27.01193182,2522.1,2522.0,0.37953451]
[1747559720112,41.81993182,2522.1,2522.0,0.37953451]
[1747559721091,41.81993182,2522.1,2521.7,0.47389864]
[1747559721092,3.96542152,2521.8,2521.7,0.47389864]
[1747559721414,7.77808238,2521.8,2521.7,0.47389864]
[1747559721603,19.19308238,2521.8,2521.7,0.47389864]
[1747559724136,3.96636522,2521.2,2521.1,0.7855]
[1747559725232,3.96681976,2521.0,2520.9,0.7855]
[1747559726232,3.96661446,2521.1,2520.9,0.7855]
[1747559726436,3.96667988,2521.0,2520.9,0.7855]
[1747559727534,3.96702546,2520.8,2520.7,0.7882]
[1747559728420,3.9669946,2520.8,2520.7,0.7882]
[1747559729118,3.96725445,2520.7,2520.4,0.7882]
[1747559729830,3.96731233,2520.6,2520.4,0.7882]
[1747559730337,0.8312,2521.1,2520.4,0.7882]
[1747559730536,3.96790465,2520.3,2520.2,0.7882]
[1747559730735,3.96798417,2520.2,2520.0,96.5887]
[1747559731427,3.96783655,2520.3,2520.0,96.5887]
[1747559731733,3.96802211,2520.2,2520.0,96.5887]
[1747559732131,11.3736791,2520.4,2520.0,96.5887]
[1747559732132,3.96785593,2520.3,2520.0,96.5887]
[1747559732301,3.96778894,2520.3,2520.0,96.5887]
[1747559732508,3.96806815,2520.2,2520.0,96.5887]
[1747559733670,3.9680965,2520.1,2520.0,95.8005]
[1747559734747,4.76170063,2520.1,2520.0,95.8005]
[1747559736427,18.7810965,2520.1,2520.0,95.8005]
[1747559744255,18.7850965,2520.1,2520.0,95.8005]
[1747559744838,3.9680965,2520.1,2520.0,95.8005]
[1747559745039,18.7850965,2520.1,2520.0,95.8005]
[1747559745338,3.9680965,2520.1,2520.0,95.8005]
[1747559745543,18.7850965,2520.1,2520.0,95.8005]
[1747559748850,3.9680965,2520.1,2520.0,96.6122]
[1747559749049,11.3760965,2520.1,2520.0,95.8005]
[1747559749378,13.65130063,2520.1,2520.0,95.8005]
[1747559750355,11.3760965,2520.1,2520.0,95.8005]
[1747559756187,3.9680965,2520.1,2520.0,95.8005]
[1747559756394,18.7850965,2520.1,2520.0,95.8005]
[1747559759972,3.9680965,2520.1,2520.0,95.8005]
[1747559760470,18.7850965,2520.1,2520.0,95.8005]
[1747559761475,3.9680965,2520.1,2520.0,95.8005]
[1747559761687,18.7850965,2520.1,2520.0,96.18069962]
[1747559763006,19.81187134,2520.1,2520.0,96.18069962]
[1747559765811,27.81187134,2520.1,2520.0,96.18069962]
[1747559765996,28.63837134,2520.1,2520.0,96.18069962]
[1747559766807,28.63837134,2520.1,2520.0,95.8005]
[1747559768010,29.18837134,2520.1,2520.0,95.8005]
[1747559768507,14.37137134,2520.1,2520.0,95.8005]
[1747559768808,29.18737134,2520.1,2520.0,95.8005]
[1747559770978,39.43361475,2520.1,2520.0,95.8005]
[1747559772616,40.81680423,2520.1,2520.0,95.8005]
[1747559772916,51.91814723,2520.1,2520.0,94.67085268]
[1747559773213,50.77200123,2520.1,2520.0,91.83482428]
[1747559773585,50.77200123,2520.1,2520.0,90.59482428]
[1747559773784,50.77200123,2520.1,2520.0,89.39482428]
[1747559774814,50.77200123,2520.1,2520.0,86.00382428]
[1747559775479,50.77200123,2520.1,2520.0,85.70882428]
[1747559776314,50.77200123,2520.1,2520.0,84.67582428]
[1747559777016,54.10773923,2520.1,2520.0,84.67582428]
[1747559777308,54.51768123,2520.1,2520.0,84.67582428]
[1747559777509,54.51768123,2520.1,2520.0,64.60743402]
[1747559777510,58.69068123,2520.1,2520.0,64.60743402]
[1747559777815,58.69068123,2520.1,2520.0,64.47243402]
[1747559778021,58.69068123,2520.1,2520.0,63.08743402]
[1747559778226,58.69068123,2520.1,2520.0,62.19973403]
[1747559778519,58.69068123,2520.1,2520.0,61.38773403]
[1747559779022,58.69068123,2520.1,2520.0,58.64973403]
[1747559779623,58.69068123,2520.1,2520.0,57.47973403]
[1747559780026,43.87468123,2520.1,2520.0,57.47973403]
[1747559780224,51.83196123,2520.1,2520.0,57.47973403]
[1747559780918,51.83196123,2520.1,2520.0,53.99703403]
[1747559781126,51.83196123,2520.1,2520.0,34.95417163]
[1747559781321,51.83196123,2520.1,2520.0,32.96987929]
[1747559781617,51.83196123,2520.1,2520.0,29.33378695]
[1747559781817,51.83196123,2520.1,2520.0,26.48008695]
[1747559782211,51.83196123,2520.1,2520.0,26.01288695]
[1747559782518,51.83196123,2520.1,2520.0,24.60538695]
[1747559783149,51.83196123,2520.1,2520.0,23.72158695]
[1747559783851,37.01596123,2520.1,2520.0,23.72158695]
[1747559784007,51.83196123,2520.1,2520.0,23.72158695]
[1747559784341,51.83196123,2520.1,2520.0,22.46578695]
[1747559784534,51.83196123,2520.1,2520.0,16.80928695]
[1747559785147,51.83196123,2520.1,2520.0,15.81718695]
[1747559786243,51.83196123,2520.1,2520.0,13.83289461]
[1747559786449,51.83196123,2520.1,2520.0,12.18109462]
[1747559786635,51.83196123,2520.1,2520.0,11.34049462]
[1747559786839,51.83196123,2520.1,2520.0,11.04999463]
[1747559787014,51.83196123,2520.1,2520.0,10.70799463]
[1747559787213,51.83196123,2520.1,2520.0,10.36649463]
[1747559787546,44.98980423,2520.1,2520.0,10.36649463]
[1747559787734,76.14663623,2520.1,2520.0,10.36649463]
[1747559788046,76.14663623,2520.1,2520.0,8.82729463]
[1747559788254,76.14663623,2520.1,2520.0,7.52372889]
[1747559788431,76.14663623,2520.1,2520.0,6.85092889]
[1747559788612,76.14663623,2520.1,2520.0,5.54512889]
[1747559788814,76.14663623,2520.1,2520.0,4.89912889]
[1747559789031,76.14663623,2520.1,2520.0,4.6036289]
[1747559789226,0.55,2519.3,2518.8,0.7947]
[1747559789425,3.96998689,2518.9,2518.8,0.7947]
[1747559791154,18.78698689,2518.9,2518.8,0.7947]
[1747559791750,3.96998689,2518.9,2518.8,0.7947]
[1747559791957,18.78698689,2518.9,2518.8,0.7947]
[1747559795030,11.37898689,2518.9,2518.8,0.7947]
[1747559795231,18.78698689,2518.9,2518.8,0.7947]
[1747559796162,3.96998689,2518.9,2518.8,0.7947]
[1747559796462,18.78798689,2518.9,2518.8,0.7947]
[1747559798764,3.96998689,2518.9,2518.8,0.7947]
[1747559798940,18.78798689,2518.9,2518.8,0.7947]
[1747559799680,19.00989775,2518.9,2518.8,0.7947]
[1747559800377,3.97090733,2518.4,2518.3,0.7564]
[1747559801269,3.97090733,2518.4,2518.3,0.38006054]
[1747559801452,3.97090733,2518.4,2518.3,1.13646054]
[1747559801873,3.97069216,2518.5,2518.3,0.38006054]
[1747559802174,3.97069216,2518.5,2518.4,0.7564]
[1747559802876,11.38069216,2518.5,2518.4,0.7564]
[1747559803778,11.38069216,2518.5,2518.4,1.13646054]
[1747559804984,11.37847812,2518.6,2518.4,1.13646054]
[1747559804985,14.818,2518.6,2518.5,0.7564]
[1747559805151,18.78745977,2518.6,2518.5,1.13646054]
[1747559805486,7.41,2518.6,2518.5,5.10707797]
[1747559805785,7.41,2518.8,2518.7,0.7564]
[1747559806452,7.41,2519.0,2518.7,0.7564]
[1747559806665,15.39960301,2519.2,2518.8,0.7564]
[1747559806858,7.41,2519.1,2518.9,0.7564]
[1747559807252,11.43,2519.2,2518.9,0.7564]
[1747559807478,11.43,2519.2,2519.1,1.0049]
[1747559808300,3.96912693,2519.5,2519.2,1.0049]
[1747559808492,7.407,2519.4,2519.2,1.0049]
[1747559809410,3.96894973,2519.6,2519.2,1.0049]
[1747559809614,7.407,2519.5,2519.2,1.0049]
[1747559809809,7.407,2519.5,2519.4,1.0049]
[1747559810219,11.37604147,2519.5,2519.4,1.0049]
[1747559810681,7.407,2519.5,2519.4,1.0049]
[1747559810882,7.407,2519.5,2519.4,1.38482932]
[1747559811209,11.37604147,2519.5,2519.4,1.38482932]
[1747559811408,7.407,2519.5,2519.4,1.38482932]
[1747559811612,3.96894202,2519.6,2519.4,0.37992932]
[1747559811812,7.407,2519.6,2519.5,1.0049]
[1747559812478,11.431,2520.0,2519.5,1.0049]
[1747559812479,11.431,2520.0,2519.5,1.04459084]
[1747559812685,7.406,2520.1,2519.7,3.96863194]
[1747559812877,11.43,2520.8,2520.0,0.9711]
[1747559813116,7.62786332,2520.7,2520.2,0.9711]
[1747559813412,3.96731524,2520.6,2520.2,0.9711]
[1747559813908,3.96725622,2520.7,2520.2,3.96793422]
[1747559814112,11.43,2520.8,2520.2,3.96793422]
[1747559814113,7.406,2520.6,2520.4,4.93870939]
[1747559814416,7.406,2520.6,2520.5,1.3498343]
[1747559815789,11.43,2520.8,2520.5,5.31730107]
[1747559816014,11.43,2520.8,2520.6,4.93832856]
[1747559816218,11.43,2520.8,2520.7,0.9711]
[1747559816514,7.405,2520.9,2520.7,0.9711]
[1747559816727,7.405,2520.9,2520.8,0.9711]
[1747559821326,3.9664509,2521.2,2520.8,0.9711]
[1747559821327,7.403,2521.2,2520.8,0.9711]
[1747559821537,7.403,2521.2,2520.9,0.9741]
[1747559821912,7.403,2521.3,2521.0,0.9741]
[1747559822937,11.428,2521.6,2521.2,3.96630616]
[1747559823119,11.428,2521.6,2521.4,0.9741]
[1747559823523,11.36719095,2522.0,2521.6,0.9741]
[1747559823820,7.402,2522.0,2521.6,0.9741]
[1747559824020,11.36719952,2522.0,2521.6,0.9741]
[1747559824330,3.96542152,2521.8,2521.6,0.9741]
[1747559824537,3.96557877,2521.7,2521.6,0.9741]
[1747559826347,3.96612399,2521.4,2521.3,0.9741]
[1747559827035,7.401,2521.5,2520.8,0.9741]
[1747559827240,7.401,2521.5,2520.9,0.79246764]
[1747559827241,3.96645545,2521.2,2520.9,0.79246764]
[1747559827846,3.96667988,2521.0,2520.9,0.79246764]
[1747559828006,3.96667988,2521.0,2520.8,0.9741]
[1747559828338,3.9660573,2521.4,2520.8,0.9741]
[1747559828518,3.9667645,2521.0,2520.8,0.9741]
[1747559828907,3.9660573,2521.4,2520.8,0.9741]
[1747559828908,3.96683724,2520.9,2520.8,0.9741]
[1747559831236,3.96715198,2520.7,2520.6,0.9741]
[1747559833815,3.96746828,2520.5,2520.1,8.9741]
[1747559834012,3.9669946,2520.8,2520.2,2.37741]
[1747559834323,3.96769609,2520.4,2520.1,0.9741]
[1747559835548,3.9675539,2520.5,2520.1,0.9741]
[1747559836939,3.96763251,2520.4,2520.1,0.9741]
[1747559837315,11.36848647,2520.5,2520.1,0.9741]
[1747559837646,3.96772082,2520.4,2520.1,0.9741]
[1747559838019,11.36855268,2520.5,2520.1,0.9741]
[1747559838216,7.401,2520.5,2520.1,4.88906903]
[1747559838452,7.4,2520.6,2520.2,0.9234]
[1747559838764,7.4,2520.6,2520.2,0.37790402]
[1747559838932,7.4,2520.6,2520.3,0.9234]
[1747559839133,7.4,2520.6,2520.3,4.89117477]
[1747559839547,7.4,2520.6,2520.3,0.9234]
[1747559839757,11.36733593,2520.6,2520.3,0.9234]
[1747559841162,7.4,2520.6,2520.3,0.9234]
[1747559842056,3.9671213,2520.8,2520.3,4.8911284]
[1747559842216,11.421,2521.4,2520.3,1.80931553]
[1747559842422,3.96701166,2520.8,2520.4,1.32004558]
[1747559842751,3.96715863,2520.7,2520.4,1.32004558]
[1747559842968,3.96746677,2520.5,2520.4,1.32004558]
[1747559843150,3.96746677,2520.5,2520.4,0.37854558]
[1747559844864,3.96778161,2520.3,2520.2,0.9415]
[1747559845064,3.96730937,2520.6,2520.0,1.41615206]
[1747559845263,3.96787365,2520.3,2520.0,1.41615206]
[1747559845561,3.96787365,2520.3,2520.2,0.7]
[1747559846571,3.96787365,2520.3,2520.0,1.41615206]
[1747559846935,3.96799394,2520.2,2520.0,0.9415]
[1747559848074,3.96799394,2520.2,2520.1,0.37875017]
[1747559850571,3.96799394,2520.2,2520.1,1.07875017]
[1747559851861,3.96752092,2520.5,2520.1,1.07875017]
[1747559852174,3.96776963,2520.4,2520.1,1.07875017]
[1747559852868,7.4,2520.7,2520.1,0.7]
[1747559853174,3.96740234,2520.6,2520.2,0.9696]
[1747559853959,3.96771871,2520.4,2520.2,0.9696]
[1747559854164,3.96771871,2520.4,2520.3,0.37870446]
[1747559854664,4.76123901,2520.4,2520.3,0.37870446]
[1747559855572,4.76123901,2520.4,2519.9,0.9696]
[1747559855573,3.96824741,2520.1,2519.9,0.9696]
[1747559856138,3.96825396,2520.0,2519.9,0.9696]
[1747559856477,3.9681799,2520.1,2519.9,0.9696]
[1747559856851,11.36903322,2520.2,2519.7,0.76780207]
[1747559856852,3.96836353,2520.0,2519.7,1.44425206]
[1747559857072,3.96848932,2519.9,2519.7,1.44425206]
[1747559857277,3.96848932,2519.9,2519.8,0.37963905]
[1747559860919,11.37748932,2519.9,2519.8,0.37963905]
[1747559861066,13.16966664,2519.9,2519.8,0.37963905]
[1747559862206,13.39164313,2519.9,2519.8,0.37963905]
[1747559862594,3.96959992,2519.2,2519.0,1.47295206]
[1747559863171,3.9696717,2519.1,2519.0,1.47295206]
[1747559863964,3.96956746,2519.2,2519.0,1.85233422]
[1747559864171,3.9696717,2519.1,2519.0,0.85403422]
[1747559865008,4.9481717,2519.1,2519.0,0.85403422]
[1747559865166,6.48229028,2519.1,2519.0,0.85403422]
[1747559865800,6.48229028,2519.1,2518.5,0.37938216]
[1747559865801,3.97039101,2518.7,2518.5,0.37938216]
[1747559866002,3.97045977,2518.6,2518.5,0.37938216]
[1747559867100,3.97073075,2518.5,2518.1,1.47295206]
[1747559867303,7.403,2518.7,2518.1,1.47295206]
[1747559867304,3.97100681,2518.3,2518.1,1.47295206]
[1747559867669,3.97109046,2518.2,2518.1,0.47465206]
[1747559868207,13.50225027,2518.2,2518.1,0.47465206]
[1747559868905,3.97140587,2518.0,2517.7,0.9136]
[1747559869325,12.29299046,2518.2,2517.4,0.47465206]
[1747559869493,3.97204079,2517.6,2517.4,1.38825206]
[1747559869689,3.97194867,2517.7,2517.4,1.38825206]
[1747559870115,3.97175742,2517.8,2517.4,1.38825206]
[1747559870478,11.39557623,2517.9,2517.4,1.38825206]
[1747559870820,11.39883408,2517.8,2517.4,1.38825206]
[1747559870981,7.426,2517.7,2517.4,1.38825206]
[1747559871382,11.3979166,2517.7,2517.4,1.38825206]
[1747559872218,11.3979166,2517.7,2517.4,0.9136]
[1747559872712,3.97164659,2517.9,2517.4,4.88593281]
[1747559872916,7.426,2518.0,2517.6,3.97193278]
[1747559873123,7.426,2518.0,2517.5,4.01181836]
[1747559873330,11.39926498,2518.1,2517.6,4.93187359]
[1747559874226,3.97140587,2518.0,2517.6,0.9599]
[1747559874528,3.97152078,2518.0,2517.6,0.9599]
[1747559875716,7.428,2518.1,2517.6,0.9599]
[1747559875916,10.45339617,2518.1,2517.6,0.9599]
[1747559876116,3.97210655,2517.6,2517.4,0.9599]
[1747559876314,3.97217871,2517.6,2517.2,0.9599]
[1747559876523,3.97226883,2517.5,2517.2,0.9599]
[1747559876704,3.97199462,2517.7,2517.2,4.93256512]
[1747559877031,3.9721099,2517.6,2517.2,0.9599]
[1747559877234,3.97199462,2517.7,2517.2,4.93254181]
[1747559877235,3.97197117,2517.7,2517.2,4.93254181]
[1747559877726,3.97180462,2517.8,2517.3,3.97248103]
[1747559877926,11.40180462,2517.8,2517.3,3.97248103]
[1747559878532,3.02539617,2518.1,2517.3,3.97248103]
[1747559878533,3.97130211,2518.1,2517.6,4.94932366]
[1747559879114,3.97143011,2518.0,2517.6,0.9774]
[1747559879628,3.97127157,2518.1,2517.6,4.94939891]
[1747559879822,3.97143105,2518.0,2517.6,0.9774]
[1747559880443,11.40317782,2518.2,2517.6,0.9774]
[1747559880734,11.40317782,2518.2,2517.6,4.94942463]
[1747559880735,3.97135324,2518.1,2517.6,4.94942463]
[1747559880925,3.97142098,2518.0,2517.6,0.9774]
[1747559881119,3.97148459,2518.0,2517.6,0.9774]
[1747559881436,3.97141528,2518.0,2517.6,0.9774]
[1747559881812,3.97159994,2517.9,2517.8,0.7]
[1747559882001,3.9717851,2517.8,2517.6,0.9774]
[1747559882197,3.97199341,2517.7,2517.3,8.9815]
[1747559882413,3.97215571,2517.6,2517.3,0.9815]
[1747559882840,3.97219821,2517.5,2517.3,0.9815]
[1747559883037,3.97211451,2517.6,2517.3,0.9815]
[1747559883449,3.9722428,2517.5,2517.3,0.9815]
[1747559883827,3.97229351,2517.5,2517.3,0.9815]
[1747559884366,3.97235242,2517.4,2517.1,0.9815]
[1747559884536,3.97220395,2517.5,2517.1,0.9815]
[1747559884741,3.9723818,2517.4,2517.1,0.9815]
[1747559885318,3.97227885,2517.5,2517.1,0.9815]
[1747559886365,3.97215872,2517.6,2517.1,0.9815]
[1747559886519,11.41190001,2517.7,2517.2,3.97264841]
[1747559886919,4.8960861,2517.8,2517.3,3.97247919]
[1747559887164,18.84464214,2517.9,2517.5,0.9815]
[1747559887313,14.873,2517.9,2517.2,4.9100956]
[1747559887520,3.9717641,2517.8,2517.2,0.9375]
[1747559887836,3.9717641,2517.8,2517.3,3.97251022]
[1747559888035,18.84461846,2517.9,2517.4,3.97235067]
[1747559888269,17.54962764,2517.9,2517.2,0.9375]
[1747559888582,3.97212531,2517.6,2517.2,0.9375]
[1747559888764,3.9721994,2517.5,2517.2,0.9375]
[1747559889594,7.444,2517.6,2517.2,0.9375]
[1747559890106,7.444,2517.6,2517.3,3.97251022]
[1747559890254,7.444,2517.6,2517.2,4.91008981]
[1747559890569,11.41605201,2517.6,2517.2,0.9375]
[1747559890769,3.97221926,2517.5,2517.2,0.9375]
[1747559891368,3.9725345,2517.3,2517.0,0.9375]
[1747559891575,3.97219463,2517.5,2517.0,0.9375]
[1747559891902,2.37678983,2517.5,2517.0,0.9375]
[1747559892094,3.97265424,2517.3,2516.8,1.41215206]
[1747559892257,3.97268258,2517.2,2516.9,0.37867186]
[1747559892457,3.97257974,2517.3,2516.9,0.37867186]
[1747559893194,3.97257974,2517.3,2516.9,4.35178542]
[1747559893568,3.97257974,2517.3,2516.9,0.37867186]
[1747559894091,3.97257974,2517.3,2517.0,0.37867186]
[1747559894250,3.9726841,2517.2,2517.0,0.37867186]
[1747559895186,3.97282587,2517.1,2517.0,0.37867186]
[1747559895801,3.97282587,2517.1,2516.8,0.37867186]
[1747559896186,3.97314156,2516.9,2516.8,0.37867186]
[1747559896398,4.76774302,2516.9,2516.8,0.37867186]
[1747559898087,11.41014156,2516.9,2516.8,0.37867186]
[1747559898713,3.97314156,2516.9,2516.8,0.37867186]
[1747559898912,3.97314156,2516.9,2516.5,0.47465206]
[1747559898913,3.97314156,2516.9,2516.6,0.37867186]
[1747559899577,3.9733658,2516.8,2516.6,0.37867186]
[1747559900316,3.9733658,2516.8,2516.7,0.37867186]
[1747559900676,3.97286478,2517.1,2516.7,0.37867186]
[1747559900909,3.97316407,2516.9,2516.7,0.37867186]
[1747559901213,3.97305132,2517.0,2516.7,0.37867186]
[1747559901411,3.97319519,2516.9,2516.7,0.37867186]
[1747559901615,3.97329942,2516.8,2516.7,0.37867186]
[1747559901784,3.97346221,2516.7,2516.5,0.37867186]
[1747559902309,3.97334612,2516.8,2516.5,0.37867186]
[1747559902310,3.97361519,2516.6,2516.5,0.37867186]
[1747559902517,3.97354882,2516.7,2516.5,0.37867186]
[1747559902905,3.97337861,2516.8,2516.5,0.37867186]
[1747559903249,18.83821719,2516.9,2516.5,0.37867186]
[1747559903527,18.83821719,2516.9,2516.6,0.37867186]
[1747559904190,3.97345314,2516.8,2516.6,0.37867186]
[1747559904392,4.8004573,2516.7,2516.6,0.37867186]
[1747559904923,3.97361519,2516.6,2516.5,0.37867186]
[1747559905626,3.97382973,2516.5,2516.3,0.37867186]
[1747559906516,3.97393101,2516.4,2516.3,0.37867186]
[1747559906715,4.76870708,2516.4,2516.3,0.37867186]
[1747559906934,4.76870708,2516.4,2515.6,4.27423767]
[1747559906935,20.46770708,2516.4,2515.8,8.47465206]
[1747559907221,3.9742603,2516.2,2515.8,8.47465206]
[1747559907622,3.9742603,2516.2,2515.8,0.47465206]
[1747559907623,3.97432358,2516.2,2515.8,0.47465206]
[1747559908236,18.86009086,2516.3,2515.9,0.3792112]
[1747559908541,14.886,2516.3,2515.9,4.35387067]
[1747559908713,18.86013583,2516.3,2515.9,0.3792112]
[1747559909231,3.97426223,2516.2,2515.9,0.3792112]
[1747559909433,11.41217442,2516.3,2515.9,0.3792112]
[1747559909810,11.41211925,2516.3,2515.9,0.3792112]
[1747559910444,3.97429747,2516.2,2515.9,0.3792112]
[1747559910641,3.97429747,2516.2,2516.0,0.3792112]
[1747559912012,3.97456938,2516.0,2515.7,1.27115206]
[1747559912213,3.97448888,2516.1,2515.7,1.27115206]
[1747559913715,3.97448888,2516.1,2515.8,0.37911842]
[1747559914251,3.97457296,2516.0,2515.8,0.37911842]
[1747559914615,3.97449102,2516.1,2515.8,0.37911842]
[1747559915331,3.97429747,2516.2,2515.7,0.7965]
[1747559915332,3.97456279,2516.0,2515.9,0.37911842]
[1747559917531,3.97456279,2516.0,2515.8,0.37911842]
[1747559920671,3.97472077,2515.9,2515.8,0.37911842]
[1747559921178,3.97465415,2516.0,2515.8,0.37911842]
[1747559921477,18.84651091,2516.1,2515.8,0.37911842]
[1747559921647,3.97462881,2516.0,2515.8,0.37911842]
[1747559921847,18.84649471,2516.1,2515.8,0.37911842]
[1747559922050,3.97456912,2516.0,2515.8,0.37911842]
[1747559922353,3.97415761,2516.3,2515.8,0.37911842]
[1747559922548,3.97440774,2516.1,2515.8,0.37911842]
[1747559922979,3.97440688,2516.1,2515.8,0.37911842]
[1747559923479,3.97456884,2516.0,2515.9,0.7809]
[1747559923674,3.97441245,2516.1,2515.9,0.7809]
[1747559923880,3.97449496,2516.1,2515.9,0.7809]
[1747559924271,3.97457685,2516.0,2515.8,0.37911842]
[1747559926448,3.97447194,2516.1,2515.8,0.37911842]
[1747559926779,0.7962,2516.4,2515.8,0.37911842]
[1747559926780,3.97401492,2516.4,2516.0,0.7809]
[1747559927783,7.44,2516.6,2516.2,4.75509536]
[1747559927978,3.97331625,2516.8,2516.3,3.97396087]
[1747559928181,18.86019109,2516.9,2516.4,4.75475777]
[1747559928594,18.86019109,2516.9,2516.5,0.37911842]
[1747559928885,14.89,2516.9,2516.5,4.35284612]
[1747559929086,7.445,2516.9,2516.6,0.7809]
[1747559929558,3.97342222,2516.8,2516.5,0.37911842]
[1747559929751,3.9735433,2516.7,2516.5,0.37911842]
[1747559929957,3.97361519,2516.6,2516.5,0.37911842]
[1747559930552,3.97336126,2516.8,2516.5,0.37911842]
[1747559930553,3.97351096,2516.7,2516.5,0.37911842]
[1747559930760,3.97333987,2516.8,2516.5,0.37911842]
[1747559930984,18.87606466,2517.0,2516.6,0.7809]
[1747559931570,18.87606988,2517.0,2516.6,0.7809]
[1747559931897,11.41806988,2517.0,2516.6,0.7809]
[1747559932060,3.97314731,2516.9,2516.6,0.7809]
[1747559932257,3.97314731,2516.9,2516.7,0.37911842]
[1747559932458,11.41805718,2517.0,2516.7,0.37911842]
[1747559932761,3.97298439,2517.0,2516.7,0.37911842]
[1747559933478,3.97298439,2517.0,2516.8,0.37911842]
[1747559933679,18.87094233,2517.1,2516.8,0.37911842]
[1747559933879,3.97294233,2517.1,2516.8,0.37911842]
[1747559934079,7.444,2517.1,2516.8,0.37911842]
[1747559934289,11.41690249,2517.1,2516.8,0.37911842]
[1747559934483,3.97290249,2517.1,2516.8,0.37911842]
[1747559935017,11.41681992,2517.2,2516.7,0.37911842]
[1747559935018,3.97309146,2517.0,2516.7,0.37911842]
[1747559935204,3.97324876,2516.9,2516.7,0.37911842]
[1747559935571,3.97306221,2517.0,2516.7,0.37911842]
[1747559936483,3.97329942,2516.8,2516.7,0.37911842]
[1747559936684,3.97321225,2516.9,2516.7,0.37911842]
[1747559936685,3.9732156,2516.9,2516.7,0.37911842]
[1747559937050,3.97307679,2517.0,2516.7,0.37911842]
[1747559937188,11.97214932,2517.6,2516.8,0.8155]
[1747559937520,3.97289308,2517.1,2516.8,0.8155]
[1747559937720,3.97268782,2517.2,2516.9,0.37911842]
[1747559937871,3.97283233,2517.1,2516.9,0.37911842]
[1747559939393,3.97278078,2517.2,2516.9,0.37911842]
[1747559939589,7.473,2517.4,2516.9,0.37911842]
[1747559939812,3.97298371,2517.0,2516.9,0.37911842]
[1747559939978,3.97290957,2517.1,2516.9,0.37911842]
[1747559940174,3.97298371,2517.0,2516.9,0.37911842]
[1747559940799,4.73572338,2517.3,2516.9,0.37911842]
[1747559940995,7.468,2517.4,2517.0,0.8155]
[1747559941280,3.97266393,2517.3,2517.0,0.8155]
[1747559941779,3.97268671,2517.2,2517.0,0.8155]
[1747559942379,7.468,2517.4,2517.0,0.8155]
[1747559942576,7.468,2517.4,2516.7,0.37911842]
[1747559942577,0.8321,2517.3,2516.7,1.20831842]
[1747559942910,0.8321,2517.6,2516.8,0.86892975]